[Event "FIDE WCCC Girls-10 2024"]
[Site "Montesilvano"]
[Date "2024.11.18"]
[Round "2.40"]
[White "Saltkhutsishvili, Sara"]
[Black "Muradli, Sabira"]
[Result "1-0"]
[ECO "C54"]
[WhiteElo "1546"]
[BlackElo "1430"]
[PlyCount "97"]
[EventDate "2024.11.18"]
[EventType "swiss"]
[EventCountry "ITA"]
[TimeControl "5400+30"]

1. e4 {[%emt 0:00:15]} e5 {[%emt 0:00:37]} 2. Nf3 {[%emt 0:00:10]} Nc6 {[%emt 0:00:05]} 3. Bc4 {[%emt 0:00:06]} Nf6 {[%emt 0:00:05]} 4. d3 {[%emt 0:00:25]} Bc5 {[%emt 0:00:09]} 5. c3 {[%emt 0:00:10]} O-O {[%emt 0:00:19]} 6. O-O {[%emt 0:00:43]} d6 {[%emt 0:00:03]} 7. h3 {[%emt 0:00:38]} d5 {[%emt 0:00:21]} 8. exd5 {[%emt 0:03:20]} Nxd5 {[%emt 0:00:09]} 9. Bg5 {[%emt 0:03:21]} Nf6 {[%emt 0:00:25]} 10. Nbd2 {[%emt 0:01:48]} Be7 {[%emt 0:01:13]} 11. Re1 {[%emt 0:08:26]} Qd6 {[%emt 0:00:51]} 12. Bb5 {[%emt 0:07:04]} h6 {[%emt 0:08:56]} 13. Bh4 {[%emt 0:04:01]} Nd7 {[%emt 0:00:35]} 14. Bg3 {[%emt 0:11:52]} Bf6 {[%emt 0:00:30]} 15. d4 {[%emt 0:05:40]} Qe7 {[%emt 0:03:37]} 16. dxe5 {[%emt 0:05:01]} Bg5 {[%emt 0:00:53]} 17. Nb3 {[%emt 0:02:27]} Nb6 {[%emt 0:01:26]} 18. h4 {[%emt 0:03:06]} Bg4 {[%emt 0:02:58]} 19. hxg5 {[%emt 0:01:40]} Rad8 {[%emt 0:00:23]} 20. Qe2 {[%emt 0:00:39]} Bxf3 {[%emt 0:05:27]} 21. Qxf3 {[%emt 0:02:36]} Qxg5 {[%emt 0:00:14]} 22. Qf4 {[%emt 0:04:40]} Qg6 {[%emt 0:00:13]} 23. Bh4 {[%emt 0:01:06]} Rde8 {[%emt 0:03:21]} 24. Qg3 {[%emt 0:02:10]} Qh7 {[%emt 0:06:24]} 25. Nd4 {[%emt 0:02:55]} Nxd4 {[%emt 0:07:40]} 26. cxd4 {[%emt 0:00:47]} c6 {[%emt 0:00:36]} 27. Bd3 {[%emt 0:01:25]} g6 {[%emt 0:00:05]} 28. e6 {[%emt 0:04:18]} f5 {[%emt 0:00:32]} 29. Qd6 Nc8 {[%emt 0:00:41]} 30. Qd7 {[%emt 0:09:48]} Ne7 {[%emt 0:02:14]} 31. Bxe7 {[%emt 0:02:47]} Rxe7 {[%emt 0:00:06]} 32. Qd6 {[%emt 0:00:06]} Qg7 {[%emt 0:00:21]} 33. Bc4 {[%emt 0:00:30]} Kh7 {[%emt 0:00:36]} 34. a4 {[%emt 0:01:04]} Rfe8 {[%emt 0:00:40]} 35. b4 {[%emt 0:00:20]} Rc7 {[%emt 0:01:43]} 36. b5 {[%emt 0:02:03]} Ree7 {[%emt 0:01:35]} 37. a5 {[%emt 0:01:02]} cxb5 {[%emt 0:00:14]} 38. Bxb5 {[%emt 0:00:08]} a6 {[%emt 0:00:05]} 39. Bd7 {[%emt 0:00:23]} Rc4 {[%emt 0:00:19]} 40. Rad1 {[%emt 0:00:32]} Rc2 {[%emt 0:01:13]} 41. d5 {[%emt 0:00:31]} Ra2 {[%emt 0:01:01]} 42. Qe5 {[%emt 0:00:43]} Qxe5 {[%emt 0:00:34]} 43. Rxe5 {[%emt 0:00:02]} Rxa5 {[%emt 0:00:15]} 44. d6 {[%emt 0:00:16]} Rg7 {[%emt 0:00:29]} 45. Rxa5 {[%emt 0:00:09]} Kg8 {[%emt 0:00:07]} 46. e7 {[%emt 0:00:04]} Kf7 {[%emt 0:00:09]} 47. e8=Q+ {[%emt 0:00:08]} Kf6 {[%emt 0:00:07]} 48. f4 {[%emt 0:00:24]} Rf7 {[%emt 0:00:04]} 49. Qe5# {[%emt 0:00:14]} 1-0

[Event "FIDE WCCC Girls-10 2024"]
[Site "Montesilvano"]
[Date "2024.11.18"]
[Round "2.41"]
[White "Kovacikova, Simona"]
[Black "Guerra Mansilla, Maria Ignacia"]
[Result "1-0"]
[ECO "C01"]
[WhiteElo "1412"]
[BlackElo "1545"]
[PlyCount "61"]
[EventDate "2024.11.18"]
[EventType "swiss"]
[EventCountry "ITA"]
[TimeControl "5400+30"]

1. e4 {[%emt 0:00:06]} e6 {[%emt 0:00:06]} 2. d4 {[%emt 0:00:05]} d5 {[%emt 0:00:08]} 3. exd5 {[%emt 0:00:07]} exd5 {[%emt 0:00:10]} 4. Nf3 {[%emt 0:00:11]} Nf6 {[%emt 0:00:09]} 5. Bd3 {[%emt 0:00:07]} Bd6 {[%emt 0:00:57]} 6. O-O {[%emt 0:00:10]} O-O {[%emt 0:00:38]} 7. Bg5 {[%emt 0:00:25]} h6 {[%emt 0:01:19]} 8. Bh4 {[%emt 0:00:12]} Bg4 {[%emt 0:02:58]} 9. Nbd2 {[%emt 0:00:25]} Nbd7 {[%emt 0:06:58]} 10. c3 {[%emt 0:03:41]} c6 {[%emt 0:07:41]} 11. Qc2 {[%emt 0:00:41]} Qc7 {[%emt 0:09:15]} 12. Bg3 {[%emt 0:02:43]} Bxg3 {[%emt 0:04:47]} 13. fxg3 {[%emt 0:02:41]} Qb6 {[%emt 0:16:52]} 14. Kh1 {[%emt 0:04:57]} Rfe8 {[%emt 0:06:53]} 15. b4 {[%emt 0:11:35]} a5 {[%emt 0:04:48]} 16. a3 {[%emt 0:12:31]} axb4 {[%emt 0:01:34]} 17. axb4 {[%emt 0:00:20]} Bxf3 {[%emt 0:02:57]} 18. Nxf3 {[%emt 0:01:16]} Rxa1 {[%emt 0:02:31]} 19. Rxa1 {[%emt 0:00:10]} Qc7 {[%emt 0:03:41]} 20. Rf1 {[%emt 0:07:43]} Nb6 {[%emt 0:03:28]} 21. Kg1 {[%emt 0:03:56]} Nc4 {[%emt 0:02:03]} 22. Bxc4 {[%emt 0:01:30]} dxc4 {[%emt 0:00:08]} 23. Ne5 {[%emt 0:02:49]} b6 {[%emt 0:03:13]} 24. Nxc4 {[%emt 0:04:08]} Nd5 {[%emt 0:01:24]} 25. Qd2 {[%emt 0:02:43]} Qe7 {[%emt 0:02:25]} 26. Ne5 {[%emt 0:02:53]} Rf8 {[%emt 0:02:19]} 27. Nxc6 {[%emt 0:03:21]} Qc7 {[%emt 0:00:41]} 28. b5 {[%emt 0:00:27]} Rc8 {[%emt 0:01:48]} 29. Re1 {[%emt 0:03:24]} Qd7 {[%emt 0:02:53]} 30. c4 {[%emt 0:01:34]} Nf6 {[%emt 0:00:40]} 31. Ne7+ {[%emt 0:00:31]} 1-0

[Event "FIDE WCCC Girls-10 2024"]
[Site "Montesilvano"]
[Date "2024.11.18"]
[Round "2.42"]
[White "Minasyan, Arina"]
[Black "Damaso Tacoronte, Carolina"]
[Result "1-0"]
[ECO "D30"]
[WhiteElo "1545"]
[BlackElo "1875"]
[PlyCount "47"]
[EventDate "2024.11.18"]
[EventType "swiss"]
[EventCountry "ITA"]
[TimeControl "5400+30"]

1. d4 {[%emt 0:00:17]} d5 {[%emt 0:00:09]} 2. Nf3 {[%emt 0:00:07]} c6 {[%emt 0:00:21]} 3. c4 {[%emt 0:00:13]} Nf6 {[%emt 0:00:39]} 4. e3 {[%emt 0:00:06]} e6 {[%emt 0:00:52]} 5. Nbd2 {[%emt 0:00:07]} Bd6 {[%emt 0:02:51]} 6. Bd3 {[%emt 0:02:21]} Nbd7 {[%emt 0:04:58]} 7. O-O {[%emt 0:01:18]} b6 {[%emt 0:00:17]} 8. a3 {[%emt 0:08:36]} Bb7 {[%emt 0:00:31]} 9. b4 {[%emt 0:00:33]} O-O {[%emt 0:00:31]} 10. Bb2 {[%emt 0:03:12]} h6 {[%emt 0:00:56]} 11. Rc1 {[%emt 0:02:06]} Rc8 {[%emt 0:02:20]} 12. c5 {[%emt 0:03:43]} bxc5 {[%emt 1:22:05]} 13. dxc5 {[%emt 0:04:10]} Bc7 {[%emt 0:00:00]} 14. a4 {[%emt 0:03:46]} a6 {[%emt 0:00:00]} 15. Qe2 {[%emt 0:03:04]} Ra8 {[%emt 0:00:00]} 16. Ra1 {[%emt 0:01:31]} e5 {[%emt 0:00:00]} 17. e4 {[%emt 0:03:35]} d4 {[%emt 0:00:00]} 18. Rfc1 {[%emt 0:02:31]} Qe7 {[%emt 0:00:00]} 19. Nh4 {[%emt 0:03:52]} Nd5 {[%emt 0:00:00]} 20. Nf5 {[%emt 0:01:32]} Qf6 {[%emt 0:00:00]} 21. exd5 {[%emt 0:00:56]} cxd5 {[%emt 0:00:00]} 22. c6 {[%emt 0:01:18]} Bxc6 {[%emt 0:00:00]} 23. Rxc6 {[%emt 0:00:04]} Qxc6 {[%emt 0:05:30]} 24. Ne7+ {[%emt 0:00:04]} 1-0